[Event "German Championship Women 2022"]
[Site "Magdeburg"]
[Date "2022.08.14"]
[Round "1.8"]
[White "Storkebaum, Ulrike"]
[Black "Zhou, Lepu Coco"]
[Result "0-1"]
[ECO "B40"]
[WhiteElo "1768"]
[BlackElo "1986"]
[Annotator "NA RC"]
[PlyCount "44"]
[EventDate "2022.08.14"]
[EventType "swiss"]
[EventCountry "GER"]
[SourceTitle "playchess.com"]
[Source "ChessBase"]
[SourceQuality "1"]
[TimeControl "40/5400+30:1800+30"]

1. e4 {[%emt 0:00:04]} c5 {[%emt 0:00:15]} 2. Nf3 {[%emt 0:00:07]} e6 {[%emt 0:00:12]} 3. d4 {[%emt 0:00:10]} cxd4 {[%emt 0:00:08]} 4. Nxd4 {[%emt 0:00:06]} Nf6 {[%emt 0:00:13]} 5. Nc3 {[%emt 0:00:43]} Nc6 {[%emt 0:00:16]} 6. Be2 {[%emt 0:01:11]} Bb4 {[%emt 0:01:35]} 7. Nxc6 {[%emt 0:06:26]} bxc6 {[%emt 0:00:10]} 8. e5 {[%emt 0:02:10]} Nd5 {[%emt 0:04:31]} 9. Bd2 {[%emt 0:00:22]} O-O {[%emt 0:01:19]} 10. O-O {[%emt 0:00:27]} Nxc3 {[%emt 0:10:38]} 11. bxc3 {[%emt 0:01:37]} Bc5 {[%emt 0:00:28]} 12. Kh1 {[%emt 0:01:07]} f6 {[%emt 0:02:54]} 13. exf6 {[%emt 0:03:59]} Qxf6 {[%emt 0:00:26]} 14. Bd3 $11 {[%emt 0:03:44]} Qh4 {[%emt 0:10:18]} 15. g3 {[%emt 0:05:43]} Qh3 {[%emt 0:01:04]} 16. Qe2 {[%emt 0:02:05]} d5 {[%emt 0:05:13]} 17. f4 {[%emt 0:01:47]} e5 {[%emt 0:05:37]} 18. fxe5 {[%emt 0:08:33]} Bg4 {[%emt 0:00:32]} 19. Qg2 {[%emt 0:04:45]} Qh5 {[%emt 0:00:36]} 20. Rae1 {[%emt 0:08:50]} Bh3 {[%emt 0:06:49]} 21. Rxf8+ {[%emt 0:02:04]} Rxf8 {[%emt 0:00:08]} 22. Qe2 {[%emt 0:00:21]} Bg4 {[%emt 0:00:18]} 0-1

[Event "German Championship Women 2022"]
[Site "Magdeburg"]
[Date "2022.08.14"]
[Round "1.9"]
[White "Heil, Marina"]
[Black "Bazzazi, Elnaz"]
[Result "0-1"]
[ECO "A26"]
[WhiteElo "1926"]
[BlackElo "1766"]
[Annotator "NA RC"]
[PlyCount "40"]
[EventDate "2022.08.14"]
[EventType "swiss"]
[EventCountry "GER"]
[SourceTitle "playchess.com"]
[Source "ChessBase"]
[SourceQuality "1"]
[TimeControl "40/5400+30:1800+30"]

1. c4 {[%emt 0:00:04]} e5 {[%emt 0:00:24]} 2. Nc3 {[%emt 0:00:09]} Nc6 {[%emt 0:00:36]} 3. g3 {[%emt 0:00:13]} g6 {[%emt 0:00:49]} 4. Bg2 {[%emt 0:00:20]} Bg7 {[%emt 0:00:43]} 5. d3 {[%emt 0:00:35]} d6 {[%emt 0:00:25]} 6. e4 {[%emt 0:01:17]} Nh6 {[%emt 0:01:47]} 7. Nge2 {[%emt 0:00:51]} O-O {[%emt 0:00:20]} 8. O-O {[%emt 0:00:36]} f5 {[%emt 0:01:29]} 9. h3 {[%emt 0:04:32]} f4 {[%emt 0:06:54]} 10. gxf4 {[%emt 0:01:03]} exf4 {[%emt 0:00:13]} 11. Bxf4 {[%emt 0:03:36]} Rxf4 {[%emt 0:03:22]} 12. Nxf4 {[%emt 0:07:19]} Be5 {[%emt 0:00:21]} 13. Nfd5 {[%emt 0:13:03]} Qh4 {[%emt 0:09:53]} 14. Ne2 {[%emt 0:12:07]} Bxh3 {[%emt 0:02:39]} 15. f4 {[%emt 0:08:05]} Bxg2 {[%emt 0:16:58]} 16. Kxg2 {[%emt 0:05:23]} Ng4 {[%emt 0:02:18]} 17. Rh1 {[%emt 0:06:25]} Qf2+ {[%emt 0:01:04]} 18. Kh3 {[%emt 0:00:11]} Qf3+ {[%emt 0:03:05]} 19. Kh4 {[%emt 0:02:34]} Ne3 {[%emt 0:13:31]} 20. Nxe3 {[%emt 0:01:32]} Bf6# {[%emt 0:00:08]} 0-1

[Event "German Championship Women 2022"]
[Site "Magdeburg"]
[Date "2022.08.14"]
[Round "1.10"]
[White "Voigt, Anastasia"]
[Black "Falke, Ornella"]
[Result "1/2-1/2"]
[ECO "C50"]
[WhiteElo "1694"]
[BlackElo "1912"]
[Annotator "NA RC"]
[PlyCount "131"]
[EventDate "2022.08.14"]
[EventType "swiss"]
[EventCountry "GER"]
[SourceTitle "playchess.com"]
[Source "ChessBase"]
[SourceQuality "1"]
[TimeControl "40/5400+30:1800+30"]

1. e4 {[%emt 0:00:02]} e5 {[%emt 0:00:11]} 2. Nf3 {[%emt 0:00:05]} Nc6 {[%emt 0:00:07]} 3. Bc4 {[%emt 0:00:10]} Nf6 {[%emt 0:00:06]} 4. d3 {[%emt 0:00:21]} Bc5 {[%emt 0:00:13]} 5. c3 {[%emt 0:00:06]} a6 {[%emt 0:00:17]} 6. Bb3 {[%emt 0:00:20]} Ba7 {[%emt 0:00:28]} 7. Nbd2 {[%emt 0:00:17]} h6 {[%emt 0:00:46]} 8. Nf1 {[%emt 0:01:10]} d6 {[%emt 0:06:37]} 9. Ng3 {[%emt 0:01:12]} Qe7 {[%emt 0:13:05]} 10. O-O {[%emt 0:03:36]} g5 {[%emt 0:01:02]} 11. Re1 $15 {[%emt 0:11:42]} ({White should play} 11. Be3 $16) 11... g4 {[%emt 0:09:19]} 12. Nd2 {[%emt 0:05:45]} h5 {[%emt 0:01:41]} 13. Nc4 {[%emt 0:10:53]} h4 {[%emt 0:03:34]} 14. Nf1 {[%emt 0:01:06]} g3 {[%emt 0:04:24]} 15. hxg3 {[%emt 0:03:32]} hxg3 {[%emt 0:00:44]} 16. Nxg3 {[%emt 0:05:49]} Ng4 {[%emt 0:02:04]} 17. Ne3 {[%emt 0:03:46]} Rg8 {[%emt 0:14:03]} 18. Kf1 {[%emt 0:10:32]} Qh4 {[%emt 0:03:00]} 19. Qc2 {[%emt 0:11:33]} Na5 {[%emt 0:07:17]} 20. Nxg4 {[%emt 0:04:08]} Bxg4 {[%emt 0:00:29]} 21. Be3 {[%emt 0:01:40]} Bxe3 {[%emt 0:03:34]} 22. Rxe3 {[%emt 0:00:26]} Nxb3 {[%emt 0:05:14]} 23. Qxb3 {[%emt 0:01:19]} O-O-O {[%emt 0:00:10]} 24. Ke1 {[%emt 0:08:55]} Be6 {[%emt 0:01:06]} 25. Qd1 {[%emt 0:00:49]} Qh2 {[%emt 0:01:25]} 26. Kd2 {[%emt 0:01:48]} Qxg2 {[%emt 0:00:36]} 27. Qf3 {[%emt 0:01:12]} Qxf3 {[%emt 0:01:40]} 28. Rxf3 {[%emt 0:00:07]} Rh8 {[%emt 0:01:56]} 29. c4 {[%emt 0:00:48]} Kd7 {[%emt 0:02:28]} 30. Rg1 {[%emt 0:01:20]} Rdg8 {[%emt 0:01:25]} 31. Re3 {[%emt 0:02:06]} Rh2 {[%emt 0:00:43]} 32. Re2 {[%emt 0:00:46]} f5 {[%emt 0:04:18]} 33. f3 {[%emt 0:01:12]} Rh3 {[%emt 0:01:09]} 34. exf5 {[%emt 0:00:54]} Bxf5 {[%emt 0:01:05]} 35. Reg2 {[%emt 0:00:13]} Be6 {[%emt 0:00:29]} 36. Ke3 {[%emt 0:01:30]} Rf8 {[%emt 0:00:24]} 37. Rf2 {[%emt 0:00:23]} Rg8 {[%emt 0:05:22]} 38. Ne2 {[%emt 0:02:14]} Rf8 {[%emt 0:01:07]} 39. Rg3 {[%emt 0:00:41]} Rh1 {[%emt 0:00:18]} 40. Rg1 {[%emt 0:00:13]} Rh7 {[%emt 0:00:19]} 41. Rfg2 {[%emt 0:31:08]} Rhf7 {[%emt 0:31:27]} 42. Rg7 {[%emt 0:01:22]} c6 {[%emt 0:00:00]} 43. Rxf7+ {[%emt 0:00:00]} Rxf7 {[%emt 0:00:00]} 44. f4 {[%emt 0:00:00]} exf4+ {[%emt 0:00:00]} 45. Nxf4 {[%emt 0:00:00]} Bf5 {[%emt 0:00:00]} 46. Kd2 {[%emt 0:00:00]} Kc7 {[%emt 0:00:00]} 47. Re1 {[%emt 0:00:00]} b5 {[%emt 0:00:00]} 48. a3 {[%emt 0:00:00]} Rh7 {[%emt 0:00:00]} 49. Kc3 {[%emt 0:00:00]} Kb6 50. Re3 {[%emt 0:00:00]} Rh2 {[%emt 0:00:00]} 51. Re2 {[%emt 0:00:00]} Rh1 {[%emt 0:00:00]} 52. Rf2 {[%emt 0:00:00]} Bd7 {[%emt 0:00:00]} 53. Re2 {[%emt 0:00:00]} Rf1 {[%emt 0:00:00]} 54. Ne6 {[%emt 0:00:00]} Rf6 {[%emt 0:00:00]} 55. Nd4 {[%emt 0:00:00]} Rg6 {[%emt 0:00:00]} 56. b4 {[%emt 0:00:00]} Rg3 {[%emt 0:00:00]} 57. Re7 {[%emt 0:00:00]} Bh3 {[%emt 0:00:00]} 58. Nb3 {[%emt 0:00:00]} c5 {[%emt 0:03:52]} 59. bxc5+ {[%emt 0:07:00]} dxc5 {[%emt 0:00:30]} 60. Re5 {[%emt 0:00:13]} b4+ {[%emt 0:00:36]} 61. axb4 {[%emt 0:00:17]} cxb4+ {[%emt 0:00:11]} 62. Kxb4 {[%emt 0:01:09]} Rxd3 {[%emt 0:00:07]} 63. c5+ {[%emt 0:01:36]} Kc7 {[%emt 0:00:20]} 64. Re7+ {[%emt 0:00:54]} Rd7 {[%emt 0:00:34]} 65. Rxd7+ {[%emt 0:00:35]} Bxd7 {[%emt 0:00:11]} 66. Ka5 {[%emt 0:00:48]} 1/2-1/2

[Event "German Championship Women 2022"]
[Site "Magdeburg"]
[Date "2022.08.14"]
[Round "1.11"]
[White "Braun, Kristin"]
[Black "Wartenberg, Alissa"]
[Result "0-1"]
[ECO "B40"]
[WhiteElo "1897"]
[BlackElo "1632"]
[Annotator "NA RC"]
[PlyCount "132"]
[EventDate "2022.08.14"]
[EventType "swiss"]
[EventCountry "GER"]
[SourceTitle "playchess.com"]
[Source "ChessBase"]
[SourceQuality "1"]
[TimeControl "40/5400+30:1800+30"]

1. e4 {[%emt 0:00:01]} c5 {[%emt 0:00:05]} 2. Nf3 {[%emt 0:00:13]} e6 {[%emt 0:00:09]} 3. d4 {[%emt 0:00:03]} cxd4 {[%emt 0:00:04]} 4. Nxd4 {[%emt 0:00:03]} Nf6 {[%emt 0:00:06]} 5. Nc3 {[%emt 0:00:03]} Nc6 {[%emt 0:00:04]} 6. Nxc6 {[%emt 0:00:19]} bxc6 {[%emt 0:00:08]} 7. e5 {[%emt 0:00:09]} Nd5 {[%emt 0:00:37]} 8. Ne4 {[%emt 0:00:06]} Qc7 {[%emt 0:01:53]} 9. f4 {[%emt 0:02:08]} Qb6 {[%emt 0:03:22]} 10. c4 {[%emt 0:20:41]} Bb4+ $14 {[%emt 0:17:22]} 11. Bd2 {[%emt 0:08:02]} Qe3+ {[%emt 0:05:08]} 12. Qe2 {[%emt 0:01:48]} Bxd2+ {[%emt 0:00:39]} 13. Nxd2 {[%emt 0:00:37]} Qxe2+ {[%emt 0:00:31]} 14. Bxe2 {[%emt 0:06:27]} Nxf4 {[%emt 0:00:12]} 15. g3 {[%emt 0:00:45]} Nxe2 {[%emt 0:00:44]} 16. Kxe2 {[%emt 0:00:37]} Ba6 {[%emt 0:00:43]} 17. b3 {[%emt 0:01:44]} d5 {[%emt 0:01:54]} 18. exd6 {[%emt 0:00:36]} c5 {[%emt 0:05:56]} 19. Rhd1 {[%emt 0:12:59]} Bb7 {[%emt 0:01:49]} 20. b4 {[%emt 0:07:13]} cxb4 {[%emt 0:13:08]} 21. Rab1 {[%emt 0:00:13]} a5 {[%emt 0:01:25]} 22. a3 {[%emt 0:00:15]} Rb8 {[%emt 0:00:52]} 23. axb4 {[%emt 0:04:39]} axb4 {[%emt 0:00:11]} 24. Rxb4 {[%emt 0:01:39]} Bf3+ {[%emt 0:00:52]} 25. Nxf3 {[%emt 0:00:25]} Rxb4 {[%emt 0:00:18]} 26. d7+ {[%emt 0:00:58]} Ke7 {[%emt 0:00:25]} 27. Ne5 {[%emt 0:00:46]} Rb6 {[%emt 0:00:35]} 28. c5 {[%emt 0:02:01]} Ra6 {[%emt 0:00:37]} 29. c6 {[%emt 0:02:05]} Ra7 {[%emt 0:01:54]} 30. Nc4 {[%emt 0:09:04]} Rc7 {[%emt 0:04:00]} 31. Na5 {[%emt 0:03:45]} Rb8 {[%emt 0:02:43]} 32. Nb7 {[%emt 0:08:26]} Rcxb7 {[%emt 0:02:56]} 33. cxb7 {[%emt 0:00:41]} Kd8 {[%emt 0:00:06]} 34. Rf1 {[%emt 0:02:40]} f6 {[%emt 0:00:28]} 35. Rd1 {[%emt 0:02:20]} Rxb7 {[%emt 0:00:08]} 36. Rd6 {[%emt 0:00:28]} e5 {[%emt 0:01:11]} 37. Kf3 {[%emt 0:01:01]} Rxd7 {[%emt 0:00:06]} 38. Ra6 {[%emt 0:00:06]} Ke7 {[%emt 0:00:05]} 39. Ra8 {[%emt 0:00:14]} Kf7 {[%emt 0:00:11]} 40. Ra6 {[%emt 0:01:09]} g6 {[%emt 0:00:16]} 41. Rb6 {[%emt 0:30:50]} f5 {[%emt 0:30:18]} 42. Ra6 {[%emt 0:00:40]} Re7 {[%emt 0:00:14]} 43. Rb6 {[%emt 0:00:14]} h6 {[%emt 0:00:24]} 44. Ra6 {[%emt 0:00:08]} Re6 {[%emt 0:00:11]} 45. Ra7+ {[%emt 0:00:09]} Kf6 {[%emt 0:00:04]} 46. Ra8 {[%emt 0:02:22]} e4+ {[%emt 0:00:37]} 47. Ke3 {[%emt 0:00:15]} g5 {[%emt 0:00:15]} 48. Rf8+ {[%emt 0:01:10]} Kg6 {[%emt 0:00:12]} 49. Rg8+ {[%emt 0:00:00]} Kf7 {[%emt 0:00:00]} 50. Ra8 {[%emt 0:00:00]} Rb6 {[%emt 0:00:00]} 51. Ra2 {[%emt 0:00:00]} Rb3+ {[%emt 0:00:00]} 52. Ke2 {[%emt 0:00:00]} f4 {[%emt 0:00:00]} 53. gxf4 {[%emt 0:00:00]} gxf4 {[%emt 0:00:00]} 54. Ra4 {[%emt 0:00:00]} Re3+ {[%emt 0:00:00]} 55. Kf2 {[%emt 0:00:00]} Kg6 {[%emt 0:00:00]} 56. Ra5 {[%emt 0:00:00]} Rb3 {[%emt 0:00:00]} 57. Re5 {[%emt 0:00:00]} Rb2+ {[%emt 0:00:00]} 58. Kg1 {[%emt 0:00:00]} e3 {[%emt 0:00:00]} 59. h3 {[%emt 0:00:00]} Kf6 {[%emt 0:00:00]} 60. Re4 {[%emt 0:00:00]} Rf2 {[%emt 0:00:00]} 61. Re8 {[%emt 0:00:00]} Kg5 {[%emt 0:00:00]} 62. Re6 {[%emt 0:00:00]} h5 {[%emt 0:00:00]} 63. Re8 {[%emt 0:00:00]} Kh4 {[%emt 0:00:00]} 64. Re5 {[%emt 0:00:00]} Rb2 {[%emt 0:00:00]} 65. Kf1 {[%emt 0:00:00]} Kg3 {[%emt 0:00:00]} 66. Ra5 {[%emt 0:00:00]} f3 {[%emt 0:00:00]} 0-1

[Event "German Championship Women 2022"]
[Site "Magdeburg"]
[Date "2022.08.14"]
[Round "1.12"]
[White "Mekus, Manuela"]
[Black "Spiel, Marianne"]
[Result "1-0"]
[ECO "A00"]
[WhiteElo "1638"]
[BlackElo "1893"]
[Annotator "NA RC"]
[PlyCount "87"]
[EventDate "2022.08.14"]
[EventType "swiss"]
[EventCountry "GER"]
[SourceTitle "playchess.com"]
[Source "ChessBase"]
[SourceQuality "1"]
[TimeControl "40/5400+30:1800+30"]

1. c3 {[%emt 0:00:05]} Nf6 {[%emt 0:00:14]} 2. d3 {[%emt 0:00:11]} d5 {[%emt 0:00:29]} 3. g3 {[%emt 0:00:12]} c5 {[%emt 0:00:35]} 4. Bg2 {[%emt 0:00:17]} Nc6 {[%emt 0:00:46]} 5. Nd2 {[%emt 0:00:21]} e5 {[%emt 0:02:23]} 6. Ngf3 {[%emt 0:03:10]} Be7 {[%emt 0:01:50]} 7. O-O {[%emt 0:00:20]} h6 {[%emt 0:00:45]} 8. e4 {[%emt 0:01:50]} Be6 {[%emt 0:08:00]} 9. Re1 {[%emt 0:10:00]} d4 {[%emt 0:07:07]} 10. c4 {[%emt 0:05:50]} O-O {[%emt 0:04:10]} 11. a3 {[%emt 0:02:46]} Nd7 {[%emt 0:06:47]} 12. h3 {[%emt 0:07:06]} Qe8 {[%emt 0:03:57]} 13. Nf1 {[%emt 0:07:22]} f5 {[%emt 0:03:28]} 14. exf5 {[%emt 0:01:52]} Bxf5 {[%emt 0:00:42]} 15. g4 {[%emt 0:00:49]} Be6 {[%emt 0:04:25]} 16. Ng3 {[%emt 0:00:32]} Qg6 {[%emt 0:08:15]} 17. Ne4 {[%emt 0:01:29]} Rf7 {[%emt 0:02:39]} 18. Nh2 {[%emt 0:06:31]} Raf8 {[%emt 0:03:01]} 19. Rf1 {[%emt 0:00:18]} Nf6 {[%emt 0:04:19]} 20. Bd2 {[%emt 0:03:36]} Kh8 {[%emt 0:07:54]} 21. f4 {[%emt 0:08:58]} exf4 {[%emt 0:03:52]} 22. Rxf4 {[%emt 0:01:47]} Nxe4 {[%emt 0:05:33]} 23. Bxe4 {[%emt 0:00:19]} Bf5 {[%emt 0:00:49]} 24. Rxf5 {[%emt 0:02:16]} Rxf5 {[%emt 0:00:34]} 25. Kh1 {[%emt 0:00:14]} Qd6 {[%emt 0:08:18]} 26. gxf5 {[%emt 0:01:29]} Qg3 {[%emt 0:01:55]} 27. Qg4 {[%emt 0:02:32]} Qf2 {[%emt 0:00:37]} 28. Qg2 {[%emt 0:00:11]} Qh4 {[%emt 0:01:12]} 29. Rg1 {[%emt 0:01:34]} Bf6 {[%emt 0:01:44]} 30. Ng4 {[%emt 0:03:49]} Ne5 {[%emt 0:00:55]} 31. Be1 {[%emt 0:01:33]} Qg5 {[%emt 0:01:34]} 32. Nxf6 {[%emt 0:00:31]} Qxf6 {[%emt 0:00:25]} 33. Bg3 {[%emt 0:00:46]} Nf7 {[%emt 0:01:00]} 34. Bh4 {[%emt 0:02:01]} Qe5 {[%emt 0:01:07]} 35. f6 {[%emt 0:01:30]} g5 {[%emt 0:00:31]} 36. Bg3 {[%emt 0:01:08]} Qxf6 {[%emt 0:00:22]} 37. Rf1 {[%emt 0:05:00]} Qe7 {[%emt 0:00:09]} 38. Bxb7 {[%emt 0:00:20]} Kg7 {[%emt 0:00:53]} 39. Bd5 {[%emt 0:00:04]} Qd7 {[%emt 0:00:57]} 40. Bxf7 {[%emt 0:00:35]} Rxf7 {[%emt 0:00:06]} 41. Rxf7+ {[%emt 0:30:02]} Qxf7 {[%emt 0:30:16]} 42. Be5+ {[%emt 0:01:13]} Kh7 {[%emt 0:01:49]} 43. Qe4+ {[%emt 0:00:20]} Kg8 {[%emt 0:00:19]} 44. Qd5 {[%emt 0:00:01]} 1-0

[Event "German Championship Women 2022"]
[Site "Magdeburg"]
[Date "2022.08.14"]
[Round "1.13"]
[White "Peglau, Dora"]
[Black "Petersen, Sophie"]
[Result "1-0"]
[ECO "A13"]
[WhiteElo "1920"]
[BlackElo "1597"]
[Annotator "NA RC"]
[PlyCount "105"]
[EventDate "2022.08.14"]
[EventType "swiss"]
[EventCountry "GER"]
[SourceTitle "playchess.com"]
[Source "ChessBase"]
[SourceQuality "1"]
[TimeControl "40/5400+30:1800+30"]

1. c4 {[%emt 0:00:03]} e6 {[%emt 0:00:10]} 2. g3 {[%emt 0:00:16]} d5 {[%emt 0:00:11]} 3. Bg2 {[%emt 0:00:18]} Nf6 {[%emt 0:00:38]} 4. Nf3 {[%emt 0:00:54]} dxc4 {[%emt 0:01:12]} 5. Qa4+ {[%emt 0:01:15]} Bd7 {[%emt 0:00:20]} 6. Qxc4 {[%emt 0:00:10]} c5 {[%emt 0:01:19]} 7. d4 {[%emt 0:06:27]} Nc6 {[%emt 0:05:56]} 8. dxc5 {[%emt 0:17:00]} Qa5+ $11 {[%emt 0:07:40]} 9. Bd2 {[%emt 0:04:02]} Qxc5 {[%emt 0:00:21]} 10. Na3 {[%emt 0:01:27]} Rc8 {[%emt 0:14:35]} 11. Qxc5 {[%emt 0:10:40]} Bxc5 {[%emt 0:00:08]} 12. Rc1 {[%emt 0:04:10]} Be7 {[%emt 0:12:41]} 13. O-O {[%emt 0:01:18]} O-O {[%emt 0:00:25]} 14. Nc4 {[%emt 0:03:49]} Rfd8 {[%emt 0:02:58]} 15. Bf4 {[%emt 0:11:09]} Be8 {[%emt 0:02:53]} 16. Rfd1 {[%emt 0:08:24]} Nd5 {[%emt 0:04:44]} 17. Bd2 {[%emt 0:02:08]} f6 {[%emt 0:13:34]} 18. a3 {[%emt 0:07:22]} Bg6 {[%emt 0:10:13]} 19. Nh4 {[%emt 0:03:09]} f5 {[%emt 0:04:03]} 20. Nxg6 {[%emt 0:02:13]} hxg6 {[%emt 0:00:08]} 21. e4 {[%emt 0:01:27]} Nf6 {[%emt 0:01:26]} 22. exf5 {[%emt 0:06:37]} gxf5 {[%emt 0:01:30]} 23. Bc3 {[%emt 0:01:41]} Nd7 {[%emt 0:02:19]} 24. Nd6 {[%emt 0:02:36]} Rb8 {[%emt 0:02:54]} 25. Nxb7 {[%emt 0:00:34]} Rxb7 {[%emt 0:03:28]} 26. Bxc6 {[%emt 0:00:07]} Rc7 {[%emt 0:00:37]} 27. Ba5 {[%emt 0:02:37]} Nb6 {[%emt 0:00:17]} 28. Rxd8+ {[%emt 0:01:15]} Bxd8 {[%emt 0:00:08]} 29. Rd1 {[%emt 0:00:45]} Bf6 {[%emt 0:00:40]} 30. Bxb6 {[%emt 0:01:02]} axb6 {[%emt 0:00:06]} 31. Bd7 {[%emt 0:00:23]} Bxb2 {[%emt 0:02:09]} 32. Bxe6+ {[%emt 0:00:07]} Kf8 {[%emt 0:00:13]} 33. a4 {[%emt 0:01:00]} Rc1 {[%emt 0:00:19]} 34. Rxc1 {[%emt 0:00:19]} Bxc1 {[%emt 0:00:06]} 35. Bxf5 {[%emt 0:00:07]} Ke7 {[%emt 0:00:42]} 36. f4 {[%emt 0:00:23]} Kf6 {[%emt 0:00:42]} 37. Bd7 {[%emt 0:00:32]} Ke7 {[%emt 0:00:49]} 38. Bb5 {[%emt 0:00:25]} Kf6 {[%emt 0:00:56]} 39. Kf2 {[%emt 0:00:58]} Ke6 {[%emt 0:01:43]} 40. Bc4+ {[%emt 0:00:31]} Kf5 {[%emt 0:01:17]} 41. h4 {[%emt 0:02:18]} Ke4 {[%emt 0:04:17]} 42. Bb5 {[%emt 0:04:43]} Be3+ {[%emt 0:04:43]} 43. Ke2 {[%emt 0:00:53]} Bc5 {[%emt 0:00:27]} 44. Bc6+ {[%emt 0:00:15]} Kf5 {[%emt 0:00:23]} 45. Kf3 {[%emt 0:00:10]} Be7 {[%emt 0:01:48]} 46. Bd7+ {[%emt 0:02:28]} Kg6 {[%emt 0:03:31]} 47. Ke4 {[%emt 0:00:59]} Bf6 {[%emt 0:00:58]} 48. Be8+ {[%emt 0:00:21]} Kh6 {[%emt 0:00:22]} 49. h5 {[%emt 0:01:01]} Kh7 {[%emt 0:00:25]} 50. Bf7 {[%emt 0:00:23]} Bd8 {[%emt 0:04:36]} 51. Kd5 {[%emt 0:07:49]} Be7 {[%emt 0:01:05]} 52. Kc6 {[%emt 0:01:14]} Bd8 {[%emt 0:02:07]} 53. g4 {[%emt 0:00:19]} 1-0

[Event "German Championship Women 2022"]
[Site "Magdeburg"]
[Date "2022.08.15"]
[Round "2.1"]
[White "Perez Celis, Alba"]
[Black "Schulze, Lara"]
[Result "0-1"]
[ECO "B31"]
[WhiteElo "1816"]
[BlackElo "2292"]
[Annotator "TA"]
[PlyCount "40"]
[EventDate "2022.08.14"]
[EventType "swiss"]
[EventCountry "GER"]
[SourceTitle "playchess.com"]
[Source "ChessBase"]
[SourceQuality "1"]
[TimeControl "40/5400+30:1800+30"]

{[%evp 16,40,16,16,12,0,4,-63,-70,-186,-89,-494,-481,-680,-675,-677,-671,-723,-709,-833,-842,-1753,-1252,-2549,-2187,-2128,-2051]} 1. e4 {[%emt 0:00:05]} c5 {[%emt 0:00:04]} 2. Nf3 {[%emt 0:00:18]} Nc6 {[%emt 0:00:06]} 3. Bb5 {[%emt 0:00:22]} g6 {[%emt 0:00:12]} 4. O-O {[%emt 0:00:28]} Bg7 {[%emt 0:00:10]} 5. c3 {[%emt 0:00:48]} e5 {[%emt 0:00:29][%cal Be7e5,Be5d4,Bd4d3][%mdl 32]} 6. d4 {[%emt 0:00:25]} cxd4 {[%emt 0:00:29]} 7. cxd4 {[%emt 0:00:01]} exd4 {[%emt 0:00:15]} 8. Bf4 {[%emt 0:00:02]} a6 {[%emt 0:01:49]} 9. Bc4 {[%emt 0:15:53][%mdl 1024] With the idea Qb3. White has compensation.} d6 {[%emt 0:04:10] B31: Sicilian: 2...Nc6 3 Bb5 g6.} 10. Ng5 {[%emt 0:24:02] Inhibits Be6.} Nh6 {[%emt 0:04:04] [#]} 11. b4 $146 {[%emt 0:06:06]} (11. Bd5 $11) ({Predecessor:} 11. Nd2 O-O 12. Nb3 {½-½ (12) Miljanic,B (2401)-Markovic,Z (2382) Novi Sad 2000}) 11... O-O $15 {[%emt 0:10:32] Black is slightly better.} 12. Qb3 {[%emt 0:01:27] [#]} (12. h3 $15) 12... d3 $1 $19 {[%emt 0:16:00]} 13. Nd2 $2 {[%emt 0:01:05][%mdl 8192]} Bxa1 {[%emt 0:03:05] Black is clearly winning.} 14. Rxa1 {[%emt 0:00:21]} (14. h3 $142) 14... Qf6 {[%emt 0:00:17][%csl LRa1,LRf4]} 15. Rd1 {[%emt 0:07:15]} Qxf4 {[%emt 0:00:29]} 16. Ndf3 {[%emt 0:00:21]} Ne5 {[%emt 0:02:59] And now ...Bg4 would win.} 17. Bd5 {[%emt 0:00:36]} Bg4 {[%emt 0:01:59]} 18. Bxb7 {[%emt 0:05:39]} Ra7 {[%emt 0:01:03][%cal Rg4f3]} 19. Bd5 {[%emt 0:02:16]} Bxf3 {[%emt 0:00:12]} 20. Nxf3 {[%emt 0:00:13]} Nhg4 {[%emt 0:00:13] White did not feel at home in the position after the opening.  Weighted Error Value: White=1.46/Black=0.29 (precise)} 0-1